fUSD/lending_fUSD_20251024
["ID","MTS","AMOUNT","RATE_DAILY","PERIOD"]
[392287848,1761310820140,-300.0,0.00029547,120]
[392287849,1761310820170,-291.06328894,0.00029547,120]
[392287873,1761311028578,-500.0,0.00024932,2]
[392287874,1761311028600,-82.6600787,0.00029815,120]
[392287914,1761311231345,362.5,0.00013699,2]
[392287947,1761311374091,-362.5,0.00020187,2]
[392287948,1761311374113,-362.5,0.00026676,2]
[392287949,1761311374134,-300.0,0.00027597,120]
[392287950,1761311374154,-300.0,0.00027597,120]
[392287951,1761311374178,-401.27663236,0.00027597,120]
[392287952,1761311374199,-250.0,0.00027616,2]
[392287953,1761311374220,-230.417,0.00030129,25]
[392287954,1761311374240,-297.18386604,0.00030373,2]
[392287955,1761311374263,-183.54,0.00030617,2]
[392287956,1761311374282,-300.0,0.00031999,3]
[392287957,1761311374304,-1200.0,0.00031999,3]
[392287958,1761311374323,-526.8136036,0.00032,2]
[392288032,1761311432249,-1500.0,0.00032,2]
[392288036,1761311432270,-394.17718249,0.00032,2]
[392288038,1761311432285,-958.01119287,0.00032,2]
[392288040,1761311432316,-445.12116543,0.00032,2]
[392288041,1761311432380,-17383.73685561,0.00032,2]
[392288042,1761311432390,-250.0,0.00033142,2]
[392288043,1761311432400,-362.5,0.00033165,2]
[392288044,1761311432410,-199.76,0.00035058,2]
[392288045,1761311432420,-1000.0,0.0003537,2]
[392288046,1761311432431,-232.41,0.00035628,2]
[392288047,1761311432440,-1000.0,0.00035644,2]
[392288048,1761311432450,-158.0,0.00036,30]
[392288049,1761311432460,-158.52,0.00036,30]
[392288050,1761311432470,-166.66,0.000364,30]
[392288051,1761311432480,-15680.22986727,0.00036641,2]
[392288053,1761311432490,-158.09377706,0.00036641,15]
[392288055,1761311432500,-2978.30866068,0.00036643,2]
[392288057,1761311432510,-2247.72,0.0003666,2]
[392288059,1761311432520,-150.0,0.00036741,2]
[392288061,1761311432530,-346005.56170908,0.00036741,2]
[392288064,1761311432542,-24262.93829092,0.00036741,2]
[392288066,1761311432551,-111304.70353798,0.00036741,60]
[392288068,1761311432562,-82201.9361195,0.00036741,60]
[392288070,1761311432574,-78834.31405783,0.00036741,60]
[392288472,1761311438120,-215.27123608,0.00033042,2]
[392288473,1761311438130,-162.34700163,0.00036741,60]
[392288474,1761311438222,-1377.07327054,0.00036741,60]
[392288477,1761311438272,-2122.93971476,0.00036741,60]
[392288490,1761311440324,-873.17200009,0.00036741,60]
[392288491,1761311440487,-299196.51429767,0.00036741,60]
[392288492,1761311440501,-500.0,0.00036742,2]
[392288493,1761311440511,-500.0,0.00036742,2]
[392288494,1761311440520,-500.0,0.00036742,2]
[392288495,1761311440530,-177.35159289,0.00036742,2]
[392288496,1761311440539,-10876.62366921,0.0003675,2]
[392288498,1761311440549,-500.0,0.00036773,2]
[392288499,1761311440559,-466.24016522,0.00036773,5]
[392288500,1761311440570,-500.0,0.00036773,5]
[392288501,1761311440580,-384.94150132,0.00036773,5]
[392288502,1761311440590,-374.73,0.000368,30]
[392288503,1761311440600,-290.38939255,0.00036962,7]
[392288505,1761311440610,-150.0,0.00036962,7]
[392288507,1761311440619,-150.0,0.00036962,7]
[392288509,1761311440629,-150.0,0.00036962,7]
[392288510,1761311440638,-166.66,0.00037167,30]
[392288512,1761311440647,-15680.22986719,0.00037186,2]
[392288513,1761311440657,-300.0,0.00037636,2]
[392288514,1761311440666,-158.093777,0.00037663,15]
[392288515,1761311440676,-15680.22986719,0.0003773,2]
[392288516,1761311440685,-2978.30866067,0.00037732,2]
[392288517,1761311440699,-166.66,0.00037933,30]
[392288518,1761311440708,-160.0,0.00038,60]
[392288519,1761311440718,-160.0,0.00038,60]
[392288520,1761311440727,-200.0,0.00038272,2]
[392288521,1761311440737,-534.5,0.00038272,120]
[392288522,1761311440747,-281.85,0.00038272,2]
[392288523,1761311440756,-15680.22986719,0.00038275,2]
[392288524,1761311440766,-2978.30866067,0.00038276,2]
[392288525,1761311440775,-480.96339153,0.000383,2]
[392288526,1761311440785,-250.0,0.00038316,2]
[392288527,1761311440795,-300.0,0.00038316,7]
[392288528,1761311440805,-1378.0,0.000384,2]
[392288529,1761311440815,-158.093777,0.00038686,15]
[392288530,1761311440826,-166.66,0.00038699,30]
[392288531,1761311440835,-15680.22986719,0.0003882,2]
[392288532,1761311440845,-2978.30866067,0.00038821,2]
[392288533,1761311440854,-1243.4145,0.00038888,30]
[392288534,1761311440864,-522.491,0.000389,2]
[392288535,1761311440874,-1000.0,0.000389,120]
[392288536,1761311440883,-231.45,0.00038904,2]
[392288537,1761311440898,-176.3,0.00038904,2]
[392288538,1761311440908,-1185.0,0.00038925,2]
[392288539,1761311440917,-903.0,0.00038925,2]
[392288540,1761311440926,-10000.0,0.00039,120]
[392288541,1761311440936,-160.0,0.00039,90]
[392288542,1761311440945,-160.0,0.00039,90]
[392288543,1761311440955,-2022.76731185,0.00039,60]
[392288544,1761311440964,-300.0,0.00039006,2]
[392288545,1761311440974,-232.41,0.00039053,2]
[392288546,1761311440983,-374.73,0.000391,30]
[392288547,1761311440994,-500.0,0.00039185,30]
[392288548,1761311441003,-1447.0,0.00039291,2]
[392288549,1761311441013,-500.0,0.00039297,30]
[392288550,1761311441023,-1000.0,0.000393,7]
[392288551,1761311441033,-15680.22986719,0.00039364,2]
[392288552,1761311441043,-2978.30866067,0.00039365,2]
[392288553,1761311441052,-500.0,0.00039376,7]
[392288554,1761311441066,-500.0,0.00039376,7]
[392288555,1761311441076,-500.0,0.00039376,7]
[392288556,1761311441089,-500.0,0.00039376,7]
[392288557,1761311441099,-500.0,0.00039376,7]
[392288558,1761311441109,-500.0,0.00039376,7]
[392288559,1761311441120,-500.0,0.00039376,7]
[392288560,1761311441131,-500.0,0.00039376,7]
[392288561,1761311441149,-500.0,0.00039376,7]
[392288562,1761311441158,-500.0,0.00039376,7]
[392288563,1761311441167,-500.0,0.00039376,7]
[392288564,1761311441177,-500.0,0.00039376,7]
[392288565,1761311441187,-500.0,0.00039376,7]
[392288566,1761311441196,-500.0,0.00039376,7]
[392288567,1761311441206,-500.0,0.00039376,7]
[392288568,1761311441217,-500.0,0.00039376,7]
[392288569,1761311441227,-500.0,0.00039376,7]
[392288570,1761311441238,-231.6,0.00039376,7]
[392288571,1761311441250,-500.0,0.00039376,7]
[392288572,1761311441260,-500.0,0.00039376,7]
[392288573,1761311441270,-500.0,0.00039376,7]
[392288574,1761311441284,-500.0,0.00039376,7]
[392288575,1761311441294,-500.77,0.00039376,7]
[392288576,1761311441303,-500.0,0.00039376,7]
[392288577,1761311441313,-500.0,0.00039376,7]
[392288578,1761311441325,-500.0,0.00039376,7]
[392288579,1761311441334,-500.0,0.00039376,7]
[392288580,1761311441344,-500.0,0.00039376,7]
[392288581,1761311441355,-500.0,0.00039376,7]
[392288582,1761311441364,-500.0,0.00039376,7]
[392288583,1761311441373,-500.0,0.00039376,7]
[392288584,1761311441384,-500.0,0.00039376,7]
[392288585,1761311441393,-500.0,0.00039376,7]
[392288586,1761311441402,-500.0,0.00039376,7]
[392288587,1761311441412,-500.0,0.00039376,7]
[392288588,1761311441421,-500.0,0.00039376,7]
[392288589,1761311441430,-500.0,0.00039376,7]
[392288590,1761311441440,-500.0,0.00039376,7]
[392288591,1761311441783,-500.0,0.00039376,7]
[392288592,1761311441797,-500.0,0.00039376,7]
[392288593,1761311441807,-500.0,0.00039376,7]
[392288594,1761311441816,-500.0,0.00039376,7]
[392288595,1761311441826,-500.0,0.00039376,7]
[392288596,1761311441835,-500.0,0.00039376,7]
[392288597,1761311441844,-500.0,0.00039376,7]
[392288598,1761311441855,-500.0,0.00039376,7]
[392288599,1761311441864,-500.0,0.00039376,7]
[392288600,1761311441873,-500.0,0.00039376,7]
[392288601,1761311441883,-480.96339151,0.00039387,2]
[392288602,1761311441893,-646.0,0.00039436,2]
[392288603,1761311441903,-1392.54,0.00039441,2]
[392288604,1761311441914,-500.0,0.00039451,7]
[392288605,1761311441928,-500.0,0.00039451,7]
[392288606,1761311441938,-900.0,0.00039451,7]
[392288607,1761311441948,-166.66,0.00039466,30]
[392288608,1761311441958,-8992.78,0.00039484,2]
[392288609,1761311441967,-1043.61,0.00039484,2]
[392288610,1761311441977,-4703.44,0.00039484,2]
[392288611,1761311441987,-150.99,0.00039484,2]
[392288612,1761311441997,-9999.99,0.00039484,2]
[392288613,1761311442007,-343.75,0.00039484,2]
[392288614,1761311442016,-288.28,0.00039484,2]
[392288615,1761311442027,-9999.99,0.00039484,2]
[392288616,1761311442037,-299.99,0.00039484,120]
[392288617,1761311442047,-8164.3,0.00039484,2]
[392288618,1761311442056,-999.99,0.00039484,2]
[392288619,1761311442066,-3487.0,0.00039632,2]
[392288620,1761311442076,-558.0,0.00039632,2]
[392288621,1761311442085,-6456.0,0.00039632,2]
[392288622,1761311442095,-362.5,0.00039654,2]
[392288623,1761311442104,-10000.0,0.000397,120]
[392288624,1761311442114,-158.093777,0.00039708,15]
[392288625,1761311442124,-586.83847298,0.00039726,120]
[392288626,1761311442133,-212.26300566,0.00039726,15]
[392288627,1761311442143,-176.3,0.00039726,2]
[392288628,1761311442152,-176.35,0.00039726,2]
[392288629,1761311442161,-827.74,0.00039726,2]
[392288630,1761311442171,-414.24,0.00039726,2]
[392288631,1761311442181,-168.52,0.00039726,2]
[392288632,1761311442191,-547.6,0.00039726,2]
[392288633,1761311442200,-168.52,0.00039726,2]
[392288634,1761311442212,-414.35,0.00039781,2]
[392288635,1761311442222,-15680.22986719,0.00039909,15]
[392288636,1761311442231,-2978.30866067,0.0003991,15]
[392288637,1761311442240,-305.0,0.0004,120]
[392288638,1761311442250,-160.0,0.0004,120]
[392288639,1761311442259,-160.0,0.0004,120]
[392288640,1761311442268,-279.0283,0.0004001,2]
[392288641,1761311442283,-200.0,0.00040034,20]
[392288642,1761311442292,-150.829,0.0004011,2]
[392288643,1761311442303,-150.0,0.0004011,2]
[392288644,1761311442316,-150.562,0.0004011,2]
[392288645,1761311442328,-150.0,0.0004011,2]
[392288646,1761311442337,-150.0,0.0004011,2]
[392288647,1761311442348,-188.358,0.0004011,2]
[392288648,1761311442357,-150.0,0.0004011,2]
[392288649,1761311442368,-150.0,0.0004011,2]
[392288650,1761311442377,-150.899,0.0004011,2]
[392288651,1761311442387,-572.0,0.0004011,2]
[392288652,1761311442397,-819.0,0.0004011,2]
[392288653,1761311442407,-2053.0,0.0004011,2]
[392288654,1761311442416,-3413.0,0.0004011,2]
[392288655,1761311442426,-1591.0,0.0004011,2]
[392288656,1761311442435,-606.0,0.0004011,2]
[392288657,1761311442444,-1312.0,0.0004011,2]
[392288658,1761311442454,-818.0,0.0004011,2]
[392288659,1761311442464,-1269.0,0.0004011,2]
[392288660,1761311442473,-500.0,0.00040111,30]
[392288661,1761311442483,-475.09,0.00040137,2]
[392288662,1761311442492,-1000.0,0.00040145,7]
[392288663,1761311442502,-233.7175,0.00040176,2]
[392288664,1761311442515,-2500.0,0.0004019,2]
[392288665,1761311442525,-168.0,0.00040191,2]
[392288666,1761311442535,-1425.0,0.00040194,2]
[392288667,1761311442545,-7000.0,0.000402,3]
[392288668,1761311442556,-92048.9295479,0.00040201,3]
[392288669,1761311442566,-980.324977,0.00040201,120]
[392288670,1761311442577,-980.324977,0.00040201,120]
[392288671,1761311442587,-980.324977,0.00040201,120]
[392288672,1761311442598,-821.868699,0.00040201,120]
[392288673,1761311442608,-151.0,0.00040201,120]
[392288674,1761311442618,-980.324977,0.00040201,120]
[392288675,1761311442628,-821.868699,0.00040201,120]
[392288676,1761311442638,-821.868699,0.00040201,120]
[392288677,1761311442648,-151.0,0.00040201,120]
[392288678,1761311442657,-156.279934,0.00040201,120]
[392288679,1761311442667,-821.868699,0.00040201,120]
[392288680,1761311442676,-156.279934,0.00040201,120]
[392288681,1761311442687,-53788.0086632,0.00040211,2]
[392288682,1761311442697,-114497.16550281,0.00040211,2]
[392288684,1761311444014,-462.15009088,0.00039376,7]
[392288685,1761311444319,-37.84990912,0.00039376,7]
[392288686,1761311444331,-156.279934,0.00040201,120]
[392288687,1761311444340,-607.64386761,0.00040201,30]
[392288688,1761311444356,-204.74259839,0.00040201,30]
[392288689,1761311444366,-156.279934,0.00040201,120]
[392288690,1761311444376,-1009.16553261,0.00040211,2]
[392288691,1761311446599,-500.0,0.00039484,30]
[392288692,1761311446609,-500.0,0.00039758,30]
[392288693,1761311446618,-500.0,0.00040032,30]
[392288694,1761311446629,-812.386466,0.00040201,30]
[392288695,1761311446638,-1281.4104172,0.00040211,2]
[392288696,1761311446649,-11605.47712462,0.00040211,2]
[392288773,1761311946416,351.14335133,0.00026178,120]
[392288918,1761312308936,89300.0,0.00015,2]
[392288919,1761312308967,95985.08339692,0.00015,2]
[392288930,1761312429103,1036.16605589,0.00015,2]
[392288936,1761312476495,80000.0,0.00015,2]
[392288940,1761312494131,247.56446448,0.000135,2]
[392288941,1761312494282,304.23776107,0.000125,2]
[392288945,1761312509836,221.6584506,0.0001,2]
[392288962,1761312526304,3327.37630016,0.00013699,2]
[392288980,1761312632524,-150.0,0.00018823,2]
[392288981,1761312632533,-263.1,0.00018823,2]
[392288982,1761312632543,-263.1,0.00019814,2]
[392288983,1761312632552,-71.001,0.00020706,2]
[392288984,1761312632617,-178.999,0.00020706,2]
[392288985,1761312632629,-128.32165738,0.00020706,2]
[392288986,1761312632687,-121.67834262,0.00020706,2]
[392288987,1761312632707,-351.67957141,0.00020706,2]
[392288988,1761312632719,-263.1,0.00020805,2]
[392288989,1761312632729,-263.1,0.00021795,2]
[392288990,1761312632739,-263.1,0.00022786,2]
[392288991,1761312632748,-263.1,0.00023777,2]
[392288992,1761312632767,-263.1,0.00024767,2]
[392288993,1761312632778,-500.0,0.00024932,2]
[392288994,1761312632788,-263.1,0.00025758,2]
[392288995,1761312632798,-341.71009969,0.00026675,2]
[392288996,1761312632808,-263.1,0.00026749,2]
[392288998,1761312632817,-263.1,0.00027739,2]
[392289000,1761312632827,-163.92241104,0.00028,60]
[392289002,1761312632837,-263.1,0.0002873,2]
[392289004,1761312632846,-263.1,0.00029721,2]
[392289006,1761312632856,-501.42656526,0.0003,2]
[392289008,1761312632866,-263.1,0.00030711,2]
[392289010,1761312632875,-160.0,0.00030966,2]
[392289012,1761312632886,-400.0,0.00031322,2]
[392289014,1761312632896,-400.0,0.00031322,3]
[392289015,1761312632907,-1600.0,0.00031322,3]
[392289017,1761312632917,-2566.51,0.00031325,2]
[392289019,1761312632927,-200.0,0.00031362,2]
[392289021,1761312632937,-263.1,0.00031702,2]
[392289023,1761312632947,-243.84,0.00031803,2]
[392289025,1761312632957,-263.1,0.00032693,2]
[392289027,1761312632966,-541.95639713,0.00033,2]
[392289030,1761312632976,-4186.0,0.000333,3]
[392289033,1761312632985,-263.1,0.00033683,2]
[392289036,1761312632995,-560.0,0.00033713,3]
[392289039,1761312633004,-560.0,0.00033713,2]
[392289042,1761312633014,-2240.0,0.00033853,3]
[392289044,1761312633024,-155.52275317,0.0003419,7]
[392289046,1761312633034,-5514.0,0.000343,5]
[392289049,1761312633044,-263.1,0.00034674,2]
[392289051,1761312633054,-1200.0,0.00035,2]
[392289053,1761312633063,-157.15,0.00035068,2]
[392289055,1761312633073,-153.0,0.00035105,90]
[392289057,1761312633083,-1000.0,0.00035515,2]
[392289059,1761312633093,-263.1,0.00035665,2]
[392289061,1761312633104,-606.67662642,0.00035999,15]
[392289063,1761312633114,-1200.0,0.00036,3]
[392289065,1761312633124,-184.333,0.00036,43]
[392289067,1761312633134,-157.15,0.00036235,2]
[392289069,1761312633145,-383.0,0.00036285,3]
[392289071,1761312633155,-783.0,0.00036285,2]
[392289073,1761312633165,-151.0,0.0003629,2]
[392289075,1761312633174,-151.0,0.0003629,2]
[392289077,1761312633183,-151.0,0.0003629,2]
[392289079,1761312633193,-151.0,0.0003629,2]
[392289081,1761312633202,-151.0,0.0003629,2]
[392289083,1761312633212,-151.0,0.0003629,2]
[392289085,1761312633222,-185.5743002,0.0003629,2]
[392289087,1761312633232,-151.0,0.0003629,2]
[392289089,1761312633242,-151.0,0.0003629,2]
[392289091,1761312633251,-151.0,0.0003629,2]
[392289093,1761312633261,-151.0,0.0003629,2]
[392289094,1761312633270,-247.05313764,0.0003629,2]
[392289095,1761312633279,-151.0,0.0003629,2]
[392289096,1761312633290,-151.0,0.0003629,2]
[392289097,1761312633299,-151.0,0.0003629,2]
[392289098,1761312633314,-1000.0,0.00036312,2]
[392289099,1761312633324,-150.0,0.00036312,2]
[392289100,1761312633333,-150.0,0.00036312,120]
[392289101,1761312633344,-201.33,0.00036312,2]
[392289102,1761312633355,-300.0,0.00036312,2]
[392289103,1761312633366,-451.22862457,0.0003632,120]
[392289104,1761312633376,-320.23831121,0.00036323,2]
[392289105,1761312633386,-3135.0,0.00036588,3]
[392289106,1761312633396,-263.1,0.00036656,2]
[392289107,1761312633406,-152.0,0.00036724,3]
[392289108,1761312633415,-229.63852322,0.00036728,120]
[392289109,1761312633425,-151.0,0.00036729,14]
[392289110,1761312633435,-151.0,0.00036729,14]
[392289111,1761312633446,-150.0,0.00036732,2]
[392289112,1761312633456,-1406.88293389,0.00036732,120]
[392289113,1761312633466,-396.9399534,0.00036732,2]
[392289114,1761312633477,-58772.81642308,0.00036732,2]
[392289115,1761312633487,-65011.39939533,0.00036732,2]
[392289116,1761312633501,-21473.46683129,0.00036732,2]
[392289117,1761312633511,-1091.0,0.00036732,30]
[392289118,1761312633521,-1097.35335759,0.00036732,30]
[392289119,1761312633531,-633.30922051,0.00036732,6]
[392289120,1761312633541,-6716.63528515,0.00036732,7]
[392289121,1761312633550,-544.24418483,0.00036732,7]
[392289122,1761312633561,-1879.49191545,0.00036732,2]
[392289123,1761312633571,-26795.28644389,0.00036732,2]
[392289124,1761312633581,-1372.83557782,0.00036732,2]
[392289125,1761312633590,-200.0,0.00036732,30]
[392289126,1761312633600,-95.88698341,0.00036732,2]
[392289127,1761312633611,-1254.41808677,0.00036732,2]
[392289129,1761312638478,-220.98412807,0.00031322,2]
[392289130,1761312638487,-508.7729226,0.00031322,2]
[392289132,1761312638497,-500.0,0.00031322,2]
[392289134,1761312638506,-500.0,0.00031322,2]
[392289136,1761312638516,-500.0,0.00031322,2]
[392289138,1761312638525,-500.0,0.00031322,2]
[392289139,1761312638534,-500.0,0.00031322,2]
[392289140,1761312638543,-500.0,0.00031322,2]
[392289141,1761312638553,-500.0,0.00031322,2]
[392289142,1761312638563,-500.0,0.00031322,2]
[392289143,1761312638573,-500.0,0.00031322,2]
[392289144,1761312638582,-500.0,0.00031322,2]
[392289145,1761312638592,-500.0,0.00031322,2]
[392289146,1761312638601,-500.0,0.00031322,2]
[392289148,1761312638611,-500.0,0.00031322,2]
[392289149,1761312638624,-500.0,0.00031322,2]
[392289150,1761312638634,-500.0,0.00031322,2]
[392289151,1761312638645,-500.0,0.00031322,2]
[392289152,1761312638654,-500.0,0.00031322,2]
[392289153,1761312638665,-500.0,0.00031322,2]
[392289154,1761312638675,-500.0,0.00031322,2]
[392289155,1761312638685,-500.0,0.00031322,2]
[392289156,1761312638695,-524.8599018,0.00031322,2]
[392289157,1761312638705,-500.0,0.00031322,2]
[392289158,1761312638715,-500.0,0.00031322,2]
[392289159,1761312638725,-242.68389318,0.00035999,15]
[392289160,1761312638735,-2012.94767392,0.00036732,2]
[392289161,1761312638744,-229492.56356086,0.00036732,2]
[392289162,1761312638757,-3380.5924073,0.00036732,2]
[392289163,1761312638768,-2080.0,0.00036732,2]
[392289164,1761312638779,-19265.89671864,0.00036732,2]
[392289165,1761312638794,-1334.49396501,0.00036732,2]
[392289166,1761312638805,-56122.93453256,0.00036732,2]
[392289167,1761312640440,-761.56128832,0.00036732,2]
[392289168,1761312640451,-3267.37506289,0.00036732,2]
[392289169,1761312640499,-253.03252887,0.00036732,2]
[392289170,1761312641046,-98216.3362328,0.00036732,2]
[392289171,1761312641055,-371.681602,0.00036732,2]
[392289172,1761312641065,-7379.76513439,0.00036732,2]
[392289173,1761312641074,-550.0,0.00036732,2]
[392289174,1761312641083,-1023.96654455,0.00036732,2]
[392289175,1761312641093,-2489.34534861,0.00036732,2]
[392289176,1761312641103,-5220.898587,0.00036732,2]
[392289177,1761312641113,-6000.0,0.00036732,2]
[392289178,1761312641123,-380.8618433,0.00036732,2]
[392289179,1761312641133,-1491.19156126,0.00036732,2]
[392289180,1761312641144,-475.47831016,0.00036732,7]
[392289181,1761312641153,-1048.49022591,0.00036732,2]
[392289182,1761312641163,-5089.26320982,0.00036732,2]
[392289183,1761312641172,-1194.2437363,0.00036732,2]
[392289184,1761312641182,-1703.74438811,0.00036732,2]
[392289185,1761312641191,-5284.75625457,0.00036732,14]
[392289186,1761312641200,-571.36892847,0.00036732,2]
[392289187,1761312641209,-150.0,0.00036732,2]
[392289188,1761312641219,-7879.21624934,0.00036732,2]
[392289189,1761312641228,-5278.85311081,0.00036732,14]
[392289190,1761312641237,-1395.72699773,0.00036732,2]
[392289191,1761312641246,-635.453669,0.00036732,2]
[392289192,1761312641255,-223.16796571,0.00036732,5]
[392289193,1761312641265,-217.84748435,0.00036732,2]
[392289194,1761312641275,-10390.13087896,0.00036732,2]
[392289195,1761312641285,-6404.77244238,0.00036732,5]
[392289196,1761312641295,-500.0,0.00036773,5]
[392289197,1761312641304,-500.0,0.00036773,5]
[392289198,1761312641313,-500.0,0.00036773,5]
[392289199,1761312641323,-500.0,0.00036773,5]
[392289200,1761312641332,-500.0,0.00036773,5]
[392289201,1761312641341,-500.0,0.00036773,5]
[392289202,1761312641351,-500.0,0.00036773,5]
[392289203,1761312641361,-500.0,0.00036773,5]
[392289204,1761312641370,-500.0,0.00036773,5]
[392289205,1761312641379,-500.0,0.0003678,2]
[392289206,1761312641389,-4171.74569363,0.00036781,7]
[392289207,1761312641399,-328.7897,0.00036888,7]
[392289208,1761312641408,-150.0,0.00036962,7]
[392289209,1761312641417,-150.0,0.00036962,7]
[392289210,1761312641427,-150.0,0.00036962,7]
[392289211,1761312641436,-150.0,0.00036962,7]
[392289212,1761312641445,-150.0,0.00036962,7]
[392289213,1761312641454,-150.0,0.00036962,7]
[392289214,1761312641463,-150.0,0.00036962,7]
[392289215,1761312641472,-150.0,0.00036962,7]
[392289216,1761312641481,-150.80095926,0.00036962,7]
[392289217,1761312641490,-150.0,0.00036962,7]
[392289218,1761312641499,-150.0,0.00036962,7]
[392289219,1761312641508,-150.0,0.00036962,7]
[392289220,1761312641517,-150.0,0.00036962,7]
[392289221,1761312641527,-150.79627063,0.00036962,7]
[392289222,1761312641536,-150.0,0.00036962,7]
[392289223,1761312641545,-1574.92,0.00036998,2]
[392289224,1761312641555,-1329.0,0.00037,4]
[392289225,1761312641564,-178.19568704,0.000372,120]
[392289226,1761312641573,-571.28962105,0.00037321,5]
[392289227,1761312641582,-1000.0,0.00037321,5]
[392289228,1761312641592,-500.0,0.00037321,5]
[392289229,1761312641601,-157.15,0.00037401,2]
[392289230,1761312641611,-1091.0,0.00037574,5]
[392289231,1761312641624,-263.1,0.00037646,2]
[392289232,1761312641634,-421.327488,0.00037868,5]
[392289233,1761312641646,-528.01,0.00037882,2]
[392289234,1761312641656,-150.0,0.00037988,7]
[392289235,1761312641665,-19420.19576289,0.00038207,30]
[392289236,1761312641674,-1000.0,0.0003821,2]
[392289237,1761312641683,-18929.77767637,0.00038281,5]
[392289238,1761312641693,-8135.48808057,0.000383,30]
[392289239,1761312641702,-152.0,0.00038312,4]
[392289240,1761312641712,-183.5,0.00038316,2]
[392289241,1761312641721,-204.85,0.00038316,120]
[392289242,1761312641730,-150.0,0.00038331,7]
[392289243,1761312641739,-150.0,0.00038331,7]
[392289244,1761312641749,-500.0,0.00038356,30]
[392289245,1761312641759,-16353.0,0.000385,2]
[392289246,1761312641768,-157.15,0.00038567,2]
[392289247,1761312641778,-170.9,0.00038607,2]
[392289248,1761312641787,-500.0,0.0003863,30]
[392289249,1761312641796,-500.0,0.00038878,30]
[392289250,1761312641806,-2959.1075,0.00038888,30]
[392289251,1761312641815,-1267.0,0.000389,2]
[392289252,1761312641824,-648.12692688,0.000389,120]
[392289253,1761312641833,-500.0,0.00038904,30]
[392289254,1761312641843,-316.52,0.00038904,2]
[392289255,1761312641853,-547.6,0.00038904,2]
[392289256,1761312641861,-151.0,0.00038987,14]
[392289257,1761312641872,-7773.5363499,0.0003899,14]
[392289258,1761312641882,-10000.0,0.00039,120]
[392289259,1761312641893,-2588.86,0.00039,120]
[392289260,1761312641902,-10000.0,0.00039,120]
[392289261,1761312641912,-150.0,0.00039015,7]
[392289262,1761312641921,-150.0,0.00039015,7]
[392289263,1761312641930,-150.0,0.00039015,7]
[392289264,1761312641939,-150.0,0.00039015,7]
[392289265,1761312641948,-150.0,0.00039015,7]
[392289266,1761312641958,-460.0,0.00039054,5]
[392289267,1761312641967,-500.0,0.00039156,30]
[392289268,1761312641976,-500.0,0.00039158,30]
[392289269,1761312641985,-500.0,0.00039178,30]
[392289270,1761312641995,-1403.13,0.00039195,2]
[392289271,1761312642004,-500.0,0.00039376,7]
[392289272,1761312642013,-500.0,0.00039451,7]
[392289273,1761312642022,-900.0,0.00039451,7]
[392289274,1761312642031,-500.0,0.00039451,7]
[392289275,1761312642041,-500.0,0.00039452,30]
[392289276,1761312642050,-500.0,0.00039473,5]
[392289277,1761312642060,-160.26537923,0.00039473,5]
[392289278,1761312642069,-500.70161779,0.00039473,5]
[392289279,1761312642078,-500.0,0.00039473,5]
[392289280,1761312642088,-500.0,0.00039473,5]
[392289281,1761312642098,-160.23063376,0.00039473,5]